fUSD/lending_fUSD_20240215
["ID","MTS","AMOUNT","RATE_DAILY","PERIOD"]
[314090995,1707970242369,-500.0,0.00038356,7]
[314090996,1707970242379,-520.72234652,0.00038356,7]
[314090997,1707970242389,-500.0,0.00038356,7]
[314090998,1707970242400,-506.72437926,0.00038356,7]
[314090999,1707970242411,-378.24209355,0.00038356,7]
[314091000,1707970242420,-500.0,0.00038356,7]
[314091001,1707970242430,-519.88331949,0.00038356,7]
[314091002,1707970242440,-500.0,0.00038356,7]
[314091003,1707970242449,-504.85819994,0.00038356,7]
[314091004,1707970242457,-500.0,0.00038356,7]
[314091005,1707970242466,-500.0,0.00038356,7]
[314091006,1707970242475,-500.0,0.00038356,7]
[314091007,1707970242486,-500.0,0.00038356,7]
[314091008,1707970242496,-500.0,0.00038356,7]
[314091009,1707970242506,-500.0,0.00038356,7]
[314091010,1707970242517,-500.0,0.00038356,7]
[314091012,1707970242527,-500.0,0.00038356,7]
[314091014,1707970242538,-519.91470968,0.00038356,7]
[314091016,1707970242549,-500.0,0.00038356,7]
[314091017,1707970242558,-500.0,0.00038356,7]
[314091019,1707970242568,-500.0,0.00038356,7]
[314091020,1707970242577,-531.9187783,0.00038356,7]
[314091021,1707970242586,-500.0,0.00038356,7]
[314091022,1707970242595,-500.0,0.00038356,7]
[314091023,1707970242604,-541.84363656,0.00038356,7]
[314091024,1707970242613,-500.0,0.00038356,7]
[314091025,1707970242622,-427.34707273,0.00038356,7]
[314091026,1707970242631,-506.9785986,0.00038356,7]
[314091027,1707970242640,-500.0,0.00038356,7]
[314091028,1707970242649,-500.0,0.00038356,7]
[314091029,1707970242658,-500.0,0.00038356,7]
[314091030,1707970242667,-500.0,0.00038356,7]
[314091032,1707970242676,-525.61870836,0.00038356,7]
[314091033,1707970242685,-847.79,0.00038356,7]
[314091034,1707970242695,-500.0,0.00038356,7]
[314091035,1707970242704,-500.0,0.00038356,7]
[314091036,1707970242713,-500.0,0.00038356,7]
[314091037,1707970242722,-470.09,0.00038356,7]
[314091038,1707970242731,-500.0,0.00038356,7]
[314091039,1707970242740,-500.0,0.00038356,7]
[314091040,1707970242749,-514.79904498,0.00038356,7]
[314091041,1707970242759,-500.0,0.00038356,7]
[314091042,1707970242768,-500.0,0.00038356,7]
[314091043,1707970242777,-500.0,0.00038356,7]
[314091044,1707970242786,-545.24981574,0.00038356,7]
[314091045,1707970242795,-508.4683349,0.00038356,7]
[314091046,1707970242805,-500.0,0.00038356,7]
[314091047,1707970242815,-527.08760599,0.00038356,7]
[314091048,1707970242826,-500.0,0.00038356,7]
[314091049,1707970242837,-500.0,0.00038356,7]
[314091050,1707970242847,-500.0,0.00038356,7]
[314091051,1707970242858,-500.0,0.00038356,7]
[314091052,1707970242868,-509.45089559,0.00038356,7]
[314091053,1707970242878,-632.92258197,0.00038356,7]
[314091054,1707970242887,-525.63138842,0.00038356,7]
[314091055,1707970242896,-566.31315804,0.00038356,7]
[314091056,1707970242905,-538.4187582,0.00038356,7]
[314091057,1707970242914,-500.0,0.00038356,7]
[314091058,1707970242923,-500.0,0.00038356,7]
[314091059,1707970242932,-500.0,0.00038356,7]
[314091060,1707970242941,-500.0,0.00038356,7]
[314091061,1707970242950,-262.15474195,0.00038356,7]
[314091062,1707970242959,-500.0,0.00038356,7]
[314091063,1707970242969,-500.0,0.00038356,7]
[314091064,1707970242979,-536.86,0.00038356,7]
[314091065,1707970242989,-500.0,0.00038356,7]
[314091066,1707970242999,-500.0,0.00038356,7]
[314091067,1707970243010,-518.95348025,0.00038356,7]
[314091068,1707970243019,-556.86127853,0.00038356,7]
[314091069,1707970243028,-506.19133139,0.00038356,7]
[314091070,1707970243037,-500.0,0.00038356,7]
[314091071,1707970243046,-500.0,0.00038356,7]
[314091072,1707970243055,-500.0,0.00038356,7]
[314091073,1707970243065,-500.0,0.00038356,7]
[314091074,1707970243075,-500.0,0.00038356,7]
[314091075,1707970243086,-500.0,0.00038356,7]
[314091076,1707970243095,-500.0,0.00038356,7]
[314091077,1707970243105,-515.80534666,0.00038356,7]
[314091078,1707970243114,-500.0,0.00038356,7]
[314091080,1707970243124,-518.00919566,0.00038356,7]
[314091082,1707970243133,-553.95140339,0.00038356,7]
[314091083,1707970243142,-506.14005328,0.00038356,7]
[314091084,1707970243151,-529.82648563,0.00038356,7]
[314091085,1707970243160,-543.06817375,0.00038356,7]
[314091086,1707970243170,-508.23824411,0.00038356,7]
[314091087,1707970243180,-536.01433717,0.00038356,7]
[314091088,1707970243190,-500.0,0.00038356,7]
[314091089,1707970243199,-518.98371549,0.00038356,7]
[314091090,1707970243208,-500.0,0.00038356,7]
[314091091,1707970243218,-500.0,0.00038356,7]
[314091092,1707970243228,-563.8544655,0.00038356,7]
[314091093,1707970243239,-500.0,0.00038356,7]
[314091094,1707970243248,-505.44226708,0.00038356,7]
[314091095,1707970243257,-228.29611074,0.00038356,7]
[314091096,1707970243268,-500.0,0.00038356,7]
[314091097,1707970243278,-500.0,0.00038356,7]
[314091098,1707970243288,-500.0,0.00038356,7]
[314091099,1707970243298,-513.36903424,0.00038356,7]
[314091100,1707970243308,-500.0,0.00038356,7]
[314091101,1707970243319,-570.34177993,0.00038356,7]
[314091102,1707970243329,-500.0,0.00038356,7]
[314091103,1707970243338,-500.0,0.00038356,7]
[314091104,1707970243348,-500.0,0.00038356,7]
[314091105,1707970243357,-500.0,0.00038356,7]
[314091106,1707970243367,-500.0,0.00038356,7]
[314091107,1707970243377,-500.0,0.00038356,7]
[314091108,1707970243387,-500.0,0.00038356,7]
[314091109,1707970243398,-500.0,0.00038356,7]
[314091110,1707970243414,-500.0,0.00038356,7]
[314091111,1707970243425,-500.0,0.00038356,7]
[314091112,1707970243437,-500.0,0.00038356,7]
[314091113,1707970243447,-517.03350251,0.00038356,7]
[314091114,1707970243456,-500.0,0.00038356,7]
[314091115,1707970243465,-500.0,0.00038356,7]
[314091116,1707970243475,-509.28967933,0.00038356,7]
[314091117,1707970243486,-500.0,0.00038356,7]
[314091118,1707970243495,-500.0,0.00038356,7]
[314091119,1707970243504,-1000.0,0.00038356,7]
[314091120,1707970243515,-510.79275836,0.00038356,7]
[314091121,1707970243524,-500.0,0.00038356,7]
[314091122,1707970243536,-500.0,0.00038356,7]
[314091123,1707970243545,-537.07880517,0.00038356,7]
[314091124,1707970243555,-500.0,0.00038356,7]
[314091125,1707970243565,-500.0,0.00038356,7]
[314091126,1707970243576,-500.0,0.00038356,7]
[314091127,1707970243585,-500.0,0.00038356,7]
[314091128,1707970243594,-500.0,0.00038356,7]
[314091129,1707970243604,-500.0,0.00038356,7]
[314091130,1707970243612,-500.0,0.00038356,7]
[314091131,1707970243622,-518.51315706,0.00038356,7]
[314091132,1707970243631,-500.0,0.00038356,7]
[314091133,1707970243641,-500.0,0.00038356,7]
[314091134,1707970243651,-500.0,0.00038356,7]
[314091135,1707970243661,-527.9211618,0.00038356,7]
[314091136,1707970243670,-230.30447604,0.00038356,7]
[314091137,1707970243681,-500.0,0.00038356,7]
[314091138,1707970243690,-500.0,0.00038356,7]
[314091139,1707970243700,-500.0,0.00038356,7]
[314091140,1707970243712,-500.0,0.00038356,7]
[314091141,1707970243722,-500.0,0.00038356,7]
[314091142,1707970243733,-500.0,0.00038356,7]
[314091143,1707970243742,-509.82188529,0.00038356,7]
[314091144,1707970243751,-500.0,0.00038356,7]
[314091145,1707970243760,-532.01965556,0.00038356,7]
[314091146,1707970243770,-500.0,0.00038356,7]
[314091147,1707970243780,-500.0,0.00038356,7]
[314091148,1707970243791,-500.0,0.00038356,7]
[314091149,1707970243801,-500.0,0.00038356,7]
[314091150,1707970243812,-500.0,0.00038356,7]
[314091151,1707970243823,-500.0,0.00038356,7]
[314091152,1707970243833,-506.84362158,0.00038356,7]
[314091153,1707970243843,-500.0,0.00038356,7]
[314091154,1707970243854,-500.0,0.00038356,7]
[314091155,1707970243864,-500.0,0.00038356,7]
[314091156,1707970243874,-500.0,0.00038356,7]
[314091157,1707970243883,-500.0,0.00038356,7]
[314091158,1707970243893,-500.0,0.00038356,7]
[314091159,1707970243903,-500.0,0.00038356,7]
[314091160,1707970243911,-500.0,0.00038356,7]
[314091161,1707970243921,-500.0,0.00038356,7]
[314091162,1707970243930,-500.0,0.00038356,7]
[314091163,1707970243939,-500.0,0.00038356,7]
[314091165,1707970243948,-500.0,0.00038356,7]
[314091166,1707970243958,-500.0,0.00038356,7]
[314091167,1707970243967,-500.0,0.00038356,7]
[314091168,1707970243977,-500.0,0.00038356,7]
[314091169,1707970243986,-500.0,0.00038356,7]
[314091170,1707970243995,-500.0,0.00038356,7]
[314091171,1707970244004,-605.17217558,0.00038356,7]
[314091172,1707970244014,-500.0,0.00038356,7]
[314091174,1707970244022,-501.61320551,0.00038356,7]
[314091175,1707970244031,-500.0,0.00038356,7]
[314091177,1707970244040,-500.0,0.00038356,7]
[314091178,1707970244049,-512.45542507,0.00038356,7]
[314091179,1707970244058,-500.0,0.00038356,7]
[314091180,1707970244067,-500.0,0.00038356,7]
[314091181,1707970244077,-500.0,0.00038356,7]
[314091182,1707970244087,-500.0,0.00038356,7]
[314091183,1707970244098,-500.0,0.00038356,7]
[314091184,1707970244108,-507.04905882,0.00038356,7]
[314091185,1707970244118,-500.0,0.00038356,7]
[314091186,1707970244128,-158.89541047,0.00038356,7]
[314091187,1707970244137,-500.0,0.00038356,7]
[314091188,1707970244146,-500.0,0.00038356,7]
[314091189,1707970244155,-500.0,0.00038356,7]
[314091190,1707970244163,-500.0,0.00038356,7]
[314091191,1707970244172,-500.0,0.00038356,7]
[314091192,1707970244181,-500.0,0.00038356,7]
[314091193,1707970244189,-500.0,0.00038356,7]
[314091194,1707970244198,-500.0,0.00038356,7]
[314091195,1707970244207,-500.0,0.00038356,7]
[314091196,1707970244216,-500.0,0.00038356,7]
[314091197,1707970244226,-515.78070298,0.00038356,7]
[314091198,1707970244235,-500.0,0.00038356,7]
[314091199,1707970244244,-500.0,0.00038356,7]
[314091200,1707970244254,-500.0,0.00038356,7]
[314091201,1707970244263,-530.0,0.00038356,7]
[314091202,1707970244273,-500.0,0.00038356,7]
[314091203,1707970244283,-500.0,0.00038356,7]
[314091204,1707970244293,-540.20547507,0.00038356,7]
[314091205,1707970244303,-512.02439695,0.00038356,7]
[314091206,1707970244312,-500.0,0.00038356,7]
[314091207,1707970244322,-500.0,0.00038356,7]
[314091208,1707970244331,-636.56652055,0.00038356,7]
[314091209,1707970244340,-1125.27,0.00038356,7]
[314091210,1707970244350,-500.0,0.00038356,7]
[314091211,1707970244361,-500.0,0.00038356,7]
[314091212,1707970244370,-500.0,0.00038356,7]
[314091213,1707970244379,-500.0,0.00038356,7]
[314091214,1707970244388,-500.0,0.00038356,7]
[314091215,1707970244397,-500.0,0.00038356,7]
[314091216,1707970244408,-500.0,0.00038356,7]
[314091217,1707970244417,-500.0,0.00038356,7]
[314091218,1707970244426,-535.58096977,0.00038356,7]
[314091219,1707970244435,-500.0,0.00038356,7]
[314091220,1707970244444,-500.0,0.00038356,7]
[314091221,1707970244453,-500.0,0.00038356,7]
[314091222,1707970244462,-500.0,0.00038356,7]
[314091223,1707970244471,-500.0,0.00038356,7]
[314091224,1707970244480,-500.0,0.00038356,7]
[314091225,1707970244491,-984.05,0.00038356,7]
[314091226,1707970244501,-984.05,0.00038356,7]
[314091227,1707970244509,-984.05,0.00038356,7]
[314091228,1707970244518,-984.05,0.00038356,7]
[314091229,1707970244527,-500.0,0.00038356,7]
[314091230,1707970244536,-984.05,0.00038356,7]
[314091231,1707970244545,-500.0,0.00038356,7]
[314091232,1707970244554,-214.58842608,0.00038356,7]
[314091233,1707970244563,-525.33153705,0.00038356,7]
[314091234,1707970244572,-500.0,0.00038356,7]
[314091235,1707970244581,-512.86839764,0.00038356,7]
[314091236,1707970244590,-500.0,0.00038356,7]
[314091237,1707970244598,-461.31717773,0.00038356,7]
[314091238,1707970244607,-500.0,0.00038356,7]
[314091239,1707970244722,-522.31850375,0.00038356,7]
[314091240,1707970244732,-500.0,0.00038356,7]
[314091241,1707970244742,-500.0,0.00038356,7]
[314091242,1707970244752,-536.45306161,0.00038356,7]
[314091243,1707970244762,-500.0,0.00038356,7]
[314091244,1707970244772,-500.0,0.00038356,7]
[314091245,1707970244782,-588.74079966,0.00038356,7]
[314091246,1707970244792,-500.0,0.00038356,7]
[314091247,1707970244803,-500.0,0.00038356,7]
[314091248,1707970244813,-500.0,0.00038356,7]
[314091249,1707970244824,-520.94438638,0.00038356,7]
[314091250,1707970244836,-500.0,0.00038356,7]
[314091251,1707970244846,-500.0,0.00038356,7]
[314091252,1707970244857,-530.92753383,0.00038356,7]
[314091253,1707970244868,-500.0,0.00038356,7]
[314091254,1707970244878,-500.0,0.00038356,7]
[314091255,1707970244887,-594.95784155,0.00038356,7]
[314091256,1707970244898,-500.0,0.00038356,7]
[314091257,1707970244909,-526.04140866,0.00038356,7]
[314091258,1707970244920,-500.0,0.00038356,2]
[314091259,1707970244930,-500.0,0.00038356,7]
[314091260,1707970244941,-500.0,0.00038356,7]
[314091261,1707970244952,-500.0,0.00038356,7]
[314091262,1707970244962,-511.33637217,0.00038356,7]
[314091263,1707970244971,-500.0,0.00038356,7]
[314091264,1707970244981,-513.08608142,0.00038356,7]
[314091265,1707970244990,-500.0,0.00038356,7]
[314091266,1707970244999,-534.58195182,0.00038356,7]
[314091267,1707970245008,-554.16866169,0.00038356,7]
[314091268,1707970245018,-500.0,0.00038356,7]
[314091269,1707970245028,-500.0,0.00038356,7]
[314091270,1707970245037,-500.0,0.00038356,7]
[314091271,1707970245046,-550.65173256,0.00038356,7]
[314091272,1707970245056,-500.0,0.00038356,7]
[314091273,1707970245066,-500.0,0.00038356,7]
[314091274,1707970245075,-504.17772375,0.00038356,7]
[314091275,1707970245084,-500.0,0.00038356,7]
[314091276,1707970245093,-500.0,0.00038356,7]
[314091277,1707970245102,-500.0,0.00038356,7]
[314091278,1707970245111,-500.0,0.00038356,7]
[314091279,1707970245120,-500.0,0.00038356,7]
[314091280,1707970245130,-560.96850886,0.00038356,7]
[314091281,1707970245139,-500.0,0.00038356,7]
[314091282,1707970245148,-500.0,0.00038356,7]
[314091283,1707970245158,-508.75386279,0.00038356,7]
[314091284,1707970245167,-509.39947936,0.00038356,7]
[314091285,1707970245176,-500.0,0.00038356,7]
[314091286,1707970245186,-500.0,0.00038356,7]
[314091287,1707970245195,-500.0,0.00038356,7]
[314091288,1707970245204,-154.10912841,0.0003845,2]
[314091289,1707970245214,-151.021518,0.00038498,19]
[314091290,1707970245223,-372.86,0.0003853,2]
[314091291,1707970245232,-204.0,0.00038559,21]
[314091292,1707970245241,-170.20308447,0.0003863,2]
[314091293,1707970245250,-500.0,0.0003863,7]
[314091294,1707970245259,-500.0,0.0003863,7]
[314091295,1707970245269,-492.85772474,0.0003863,7]
[314091296,1707970245278,-500.0,0.0003863,2]
[314091297,1707970245287,-500.0,0.0003863,7]
[314091298,1707970245296,-500.0,0.0003863,7]
[314091299,1707970245305,-500.0,0.0003863,7]
[314091300,1707970245314,-500.0,0.0003863,7]
[314091301,1707970245323,-500.0,0.0003863,7]
[314091302,1707970245333,-500.0,0.0003863,7]
[314091303,1707970245342,-403.08086941,0.0003863,7]
[314091304,1707970245352,-188.94007311,0.0003863,7]
[314091305,1707970245361,-500.0,0.0003863,7]
[314091306,1707970245371,-500.0,0.0003863,7]
[314091307,1707970245380,-611.38543543,0.0003863,7]
[314091308,1707970245390,-359.7798205,0.0003863,7]
[314091309,1707970245400,-500.0,0.0003863,7]
[314091310,1707970245411,-500.0,0.0003863,7]
[314091311,1707970245420,-387.85866639,0.0003863,7]
[314091312,1707970245430,-500.0,0.0003863,7]
[314091313,1707970245441,-500.0,0.0003863,7]
[314091314,1707970245452,-610.44684359,0.0003863,7]
[314091315,1707970245461,-500.0,0.0003863,7]
[314091316,1707970245470,-500.0,0.0003863,7]
[314091318,1707970245481,-500.0,0.0003863,7]
[314091320,1707970245493,-728.22,0.0003863,7]
[314091321,1707970245504,-222.0003593,0.0003863,7]
[314091322,1707970245515,-500.0,0.0003863,7]
[314091323,1707970245524,-500.0,0.0003863,7]
[314091324,1707970245533,-398.23305113,0.0003863,7]
[314091325,1707970245545,-447.9198866,0.0003863,7]
[314091326,1707970245554,-500.0,0.0003863,7]
[314091327,1707970245566,-378.55196222,0.0003863,7]
[314091328,1707970245576,-500.0,0.0003863,7]
[314091329,1707970245585,-500.0,0.0003863,7]
[314091330,1707970245595,-214.02562295,0.0003863,7]
[314091331,1707970245603,-500.0,0.0003863,7]
[314091333,1707970245612,-500.0,0.0003863,7]
[314091334,1707970245621,-523.49911342,0.0003863,7]
[314091335,1707970245630,-500.0,0.0003863,7]
[314091336,1707970245641,-513.64108635,0.0003863,7]
[314091337,1707970245651,-500.0,0.0003863,7]
[314091338,1707970245661,-232.90147741,0.0003863,7]
[314091339,1707970245671,-574.9764823,0.0003863,7]
[314091340,1707970245681,-447.19030215,0.0003863,7]
[314091341,1707970245691,-361.1822182,0.0003863,7]
[314091342,1707970245700,-500.0,0.0003863,7]
[314091343,1707970245708,-500.0,0.0003863,7]
[314091344,1707970245717,-500.0,0.0003863,7]
[314091345,1707970245726,-500.0,0.0003863,7]
[314091346,1707970245736,-500.0,0.0003863,7]
[314091347,1707970245745,-510.24692225,0.0003863,7]
[314091348,1707970245755,-500.0,0.0003863,7]
[314091349,1707970245766,-500.0,0.0003863,7]
[314091350,1707970245774,-526.90916506,0.0003863,7]
[314091351,1707970245783,-500.0,0.0003863,7]
[314091352,1707970245793,-500.0,0.0003863,7]
[314091353,1707970245803,-535.35167269,0.0003863,7]
[314091354,1707970245814,-500.0,0.0003863,7]
[314091355,1707970245823,-640.79859323,0.0003863,7]
[314091356,1707970245834,-531.81355955,0.0003863,7]
[314091357,1707970245843,-525.24938923,0.0003863,7]
[314091358,1707970245854,-539.89645641,0.0003863,7]
[314091359,1707970245865,-521.63844482,0.0003863,7]
[314091360,1707970245875,-505.28727571,0.0003863,7]
[314091361,1707970245885,-514.91985997,0.0003863,7]
[314091362,1707970245894,-520.50020944,0.0003863,7]
[314091363,1707970245903,-500.0,0.0003863,7]
[314091364,1707970245912,-500.0,0.0003863,7]
[314091365,1707970245923,-500.27930869,0.0003863,7]
[314091366,1707970245933,-508.97939475,0.0003863,7]
[314091367,1707970245945,-554.33552457,0.0003863,7]
[314091368,1707970245955,-500.0,0.0003863,7]
[314091369,1707970245966,-536.58000967,0.0003863,7]
[314091370,1707970245975,-524.90951859,0.0003863,7]
[314091371,1707970245985,-206.05941985,0.0003863,7]
[314091372,1707970245994,-500.0,0.0003863,7]
[314091373,1707970246003,-189.46019872,0.0003863,7]
[314091374,1707970246012,-219.33591749,0.0003863,7]
[314091375,1707970246021,-500.0,0.0003863,7]
[314091376,1707970246035,-529.28924293,0.0003863,7]
[314091377,1707970246045,-500.0,0.0003863,7]
[314091378,1707970246054,-500.0,0.0003863,7]
[314091379,1707970246066,-559.04817481,0.0003863,7]
[314091380,1707970246075,-500.0,0.0003863,7]
[314091381,1707970246085,-343.28,0.0003863,7]
[314091382,1707970246095,-531.92876867,0.0003863,7]
[314091383,1707970246106,-517.19237078,0.0003863,7]
[314091384,1707970246116,-500.0,0.0003863,7]
[314091385,1707970246126,-629.97857191,0.0003863,7]
[314091386,1707970246135,-500.0,0.0003863,7]
[314091387,1707970246145,-500.0,0.0003863,7]
[314091388,1707970246154,-500.0,0.0003863,7]
[314091389,1707970246163,-500.0,0.0003863,7]
[314091390,1707970246173,-500.0,0.0003863,7]
[314091391,1707970246183,-672.19,0.0003863,7]
[314091392,1707970246192,-500.0,0.0003863,7]
[314091393,1707970246205,-500.0,0.0003863,7]
[314091394,1707970246214,-500.0,0.0003863,7]
[314091395,1707970246224,-500.0,0.0003863,7]
[314091396,1707970246233,-500.0,0.0003863,7]
[314091397,1707970246242,-500.0,0.0003863,7]
[314091398,1707970246253,-500.0,0.0003863,7]
[314091399,1707970246263,-500.0,0.0003863,7]
[314091400,1707970246272,-500.0,0.0003863,7]
[314091401,1707970246281,-580.84190245,0.0003863,7]
[314091402,1707970246290,-519.7698045,0.0003863,7]
[314091403,1707970246298,-513.91031969,0.0003863,7]
[314091404,1707970246309,-519.94743154,0.0003863,7]
[314091405,1707970246318,-500.0,0.0003863,7]
[314091406,1707970246328,-548.47279087,0.0003863,7]
[314091407,1707970246338,-517.55564951,0.0003863,7]
[314091408,1707970246348,-500.0,0.0003863,7]
[314091409,1707970246359,-500.0,0.0003863,7]
[314091410,1707970246368,-500.0,0.0003863,7]
[314091411,1707970246377,-500.0,0.0003863,7]
[314091412,1707970246387,-500.0,0.0003863,7]
[314091413,1707970246400,-521.11424411,0.0003863,7]
[314091414,1707970246409,-500.0,0.0003863,7]
[314091415,1707970246418,-847.79,0.0003863,7]
[314091416,1707970246427,-500.0,0.0003863,7]
[314091417,1707970246437,-500.0,0.0003863,7]
[314091418,1707970246446,-478.90997492,0.0003863,7]
[314091419,1707970246454,-500.0,0.0003863,7]
[314091420,1707970246464,-500.0,0.0003863,7]
[314091421,1707970246473,-500.0,0.0003863,7]
[314091422,1707970246484,-500.0,0.0003863,7]
[314091423,1707970246493,-500.0,0.0003863,7]
[314091424,1707970246502,-500.0,0.0003863,7]
[314091425,1707970246511,-500.0,0.0003863,7]
[314091426,1707970246521,-414.59066216,0.0003863,7]
[314091427,1707970246530,-500.0,0.0003863,7]
[314091428,1707970246539,-500.0,0.0003863,7]
[314091429,1707970246548,-408.91413217,0.0003863,7]
[314091430,1707970246558,-500.0,0.0003863,7]
[314091431,1707970246567,-500.0,0.0003863,7]
[314091432,1707970246576,-500.0,0.0003863,7]
[314091433,1707970246585,-500.0,0.0003863,7]
[314091434,1707970246595,-536.86,0.0003863,7]
[314091435,1707970246605,-500.0,0.0003863,7]
[314091436,1707970246614,-500.0,0.0003863,7]
[314091437,1707970246623,-500.0,0.0003863,7]
[314091438,1707970246632,-500.0,0.0003863,7]
[314091439,1707970246641,-500.0,0.0003863,7]
[314091440,1707970246650,-500.0,0.0003863,7]
[314091441,1707970246659,-572.63974245,0.0003863,7]
[314091442,1707970246668,-169.62996406,0.0003863,7]
[314091443,1707970246678,-456.07784876,0.0003863,7]
[314091444,1707970246687,-536.78854356,0.0003863,7]
[314091445,1707970246695,-500.0,0.0003863,7]
[314091446,1707970246705,-500.0,0.0003863,7]
[314091447,1707970246714,-554.18517654,0.0003863,7]
[314091448,1707970246723,-622.58977412,0.0003863,7]
[314091449,1707970246732,-544.88601718,0.0003863,7]
[314091450,1707970246741,-500.0,0.0003863,7]
[314091451,1707970246750,-540.42548636,0.0003863,7]
[314091452,1707970246760,-500.0,0.0003863,7]
[314091453,1707970246770,-500.0,0.0003863,7]
[314091454,1707970246778,-500.0,0.0003863,7]
[314091455,1707970246787,-534.17888811,0.0003863,7]
[314091456,1707970246796,-500.0,0.0003863,7]
[314091457,1707970246805,-500.0,0.0003863,7]
[314091458,1707970246814,-500.0,0.0003863,7]
[314091459,1707970246823,-500.0,0.0003863,7]
[314091460,1707970246832,-500.0,0.0003863,7]
[314091461,1707970246841,-500.0,0.0003863,7]
[314091462,1707970246850,-530.84501516,0.0003863,7]
[314091463,1707970246859,-1009.87327385,0.0003863,7]
[314091464,1707970246868,-500.0,0.0003863,7]
[314091465,1707970246877,-546.05836431,0.0003863,7]
[314091466,1707970246886,-569.77396092,0.0003863,7]
[314091467,1707970246896,-500.0,0.0003863,7]
[314091468,1707970246905,-500.0,0.0003863,7]
[314091469,1707970246914,-500.0,0.0003863,7]
[314091470,1707970246922,-500.0,0.0003863,7]
[314091471,1707970246931,-500.0,0.0003863,7]
[314091472,1707970246940,-500.0,0.0003863,7]
[314091473,1707970246949,-500.0,0.0003863,7]
[314091474,1707970246958,-500.0,0.0003863,7]
[314091475,1707970246967,-516.69245907,0.0003863,7]
[314091476,1707970246976,-500.0,0.0003863,7]
[314091477,1707970246985,-500.0,0.0003863,7]
[314091478,1707970246994,-523.03088913,0.0003863,7]
[314091479,1707970247003,-500.0,0.0003863,7]
[314091480,1707970247013,-476.9124901,0.0003863,7]
[314091481,1707970247022,-500.0,0.0003863,7]
[314091482,1707970247031,-523.5597461,0.0003863,7]
[314091483,1707970247040,-500.0,0.0003863,7]
[314091484,1707970247049,-500.0,0.0003863,7]
[314091485,1707970247058,-524.16098049,0.0003863,7]
[314091486,1707970247067,-500.0,0.0003863,7]
[314091487,1707970247076,-334.83412725,0.0003863,7]
[314091488,1707970247086,-500.0,0.0003863,7]
[314091489,1707970247095,-500.0,0.0003863,7]
[314091490,1707970247105,-500.0,0.0003863,7]
[314091491,1707970247114,-500.0,0.0003863,7]
[314091492,1707970247123,-500.0,0.0003863,7]
[314091493,1707970247132,-500.0,0.0003863,7]
[314091494,1707970247141,-500.0,0.0003863,7]
[314091495,1707970247151,-500.0,0.0003863,7]
[314091496,1707970247160,-547.83571209,0.0003863,7]
[314091497,1707970247170,-500.0,0.0003863,7]
[314091498,1707970247179,-500.0,0.0003863,7]
[314091499,1707970247189,-500.0,0.0003863,7]
[314091500,1707970247198,-500.0,0.0003863,7]
[314091501,1707970247207,-500.0,0.0003863,7]
[314091502,1707970247216,-500.0,0.0003863,7]
[314091503,1707970247226,-500.0,0.0003863,7]
[314091504,1707970247235,-500.0,0.0003863,7]
[314091505,1707970247245,-500.0,0.0003863,7]
[314091506,1707970247254,-500.0,0.0003863,7]
[314091507,1707970247264,-500.0,0.0003863,7]